[Event "Titled Tuesday Blitz June 14 Late 2022"]
[White "Mikhailov, Viacheslav"]
[Black "Shimanov, Aleksandr"]
[WhiteFideId "4187369"]
[BlackFideId "4198603"]
[WhiteElo "2381"]
[BlackElo "2605"]
[Result "0-1"]
[Round "09"]
[TimeControl "180+1"]
[Date "2022.06.14"]
[WhiteClock "0:00:08"]
[BlackClock "0:00:10"]

1. Nf3 {[%clk 0:03:00]}  d5 {[%clk 0:02:55]} 2. g3 {[%clk 0:03:01]}  Nd7 {[%clk 0:02:51]} 3. d4 {[%clk 0:03:01]}  Ngf6 {[%clk 0:02:51]} 4. Bg2 {[%clk 0:03:01]}  e6 {[%clk 0:02:51]} 5. O-O {[%clk 0:03:02]}  c6 {[%clk 0:02:50]} 6. c4 {[%clk 0:03:02]}  dxc4 {[%clk 0:02:50]} 7. a4 {[%clk 0:03:01]}  a5 {[%clk 0:02:45]} 8. Qc2 {[%clk 0:02:59]}  b5 {[%clk 0:02:45]} 9. Rd1 {[%clk 0:02:56]}  Bb7 {[%clk 0:02:37]} 10. Ne5 {[%clk 0:02:51]}  Qb6 {[%clk 0:02:36]} 11. Be3 {[%clk 0:02:39]}  Nd5 {[%clk 0:01:57]} 12. Nxd7 {[%clk 0:02:38]}  Nxe3 {[%clk 0:01:50]} 13. fxe3 {[%clk 0:02:05]}  Kxd7 {[%clk 0:01:49]} 14. Nc3 {[%clk 0:02:02]}  Bb4 {[%clk 0:01:46]} 15. Qe4 {[%clk 0:01:54]}  Rab8 {[%clk 0:01:37]} 16. Qg4 {[%clk 0:01:38]}  g6 {[%clk 0:01:34]} 17. Ne4 {[%clk 0:01:15]}  f5 {[%clk 0:01:12]} 18. Nc5+ {[%clk 0:01:15]}  Ke7 {[%clk 0:01:12]} 19. Qg5+ {[%clk 0:01:11]}  Kf7 {[%clk 0:01:12]} 20. Nd7 {[%clk 0:01:02]}  Qd8 {[%clk 0:01:11]} 21. Ne5+ {[%clk 0:01:00]}  Kg7 {[%clk 0:01:10]} 22. Qxd8 {[%clk 0:00:56]}  Rhxd8 {[%clk 0:01:09]} 23. Bxc6 {[%clk 0:00:31]}  bxa4 {[%clk 0:01:06]} 24. Bxb7 {[%clk 0:00:26]}  Rxb7 {[%clk 0:01:07]} 25. Rxa4 {[%clk 0:00:26]}  Rc8 {[%clk 0:01:04]} 26. Kf2 {[%clk 0:00:22]}  c3 {[%clk 0:01:01]} 27. bxc3 {[%clk 0:00:22]}  Rxc3 {[%clk 0:00:59]} 28. Rb1 {[%clk 0:00:20]}  Rcc7 {[%clk 0:00:38]} 29. Nd3 {[%clk 0:00:20]}  Bd2 {[%clk 0:00:36]} 30. Rxb7 {[%clk 0:00:10]}  Rxb7 {[%clk 0:00:37]} 31. Nc5 {[%clk 0:00:11]}  Rb6 {[%clk 0:00:36]} 32. Rc4 {[%clk 0:00:09]}  Bb4 {[%clk 0:00:31]} 33. Nd3 {[%clk 0:00:09]}  Bd6 {[%clk 0:00:30]} 34. Rc8 {[%clk 0:00:08]}  Ra6 {[%clk 0:00:27]} 35. Nc5 {[%clk 0:00:07]}  Bxc5 {[%clk 0:00:20]} 36. dxc5 {[%clk 0:00:08]}  Kf6 {[%clk 0:00:13]} 37. c6 {[%clk 0:00:06]}  Ke5 {[%clk 0:00:12]} 38. Kf3 {[%clk 0:00:02]}  a4 {[%clk 0:00:12]} 39. c7 {[%clk 0:00:01]}  Kd6 {[%clk 0:00:12]} 40. e4 {[%clk 0:00:01]}  fxe4+ {[%clk 0:00:10]} 41. Kxe4 {[%clk 0:00:01]}  a3 {[%clk 0:00:11]} 42. Rd8+ {[%clk 0:00:01]}  Kxc7 {[%clk 0:00:11]} 43. Rd1 {[%clk 0:00:02]}  a2 {[%clk 0:00:11]} 44. Ra1 {[%clk 0:00:03]}  Ra5 {[%clk 0:00:11]} 45. Kd4 {[%clk 0:00:03]}  Kd6 {[%clk 0:00:11]} 46. Kd3 {[%clk 0:00:03]}  Kd5 {[%clk 0:00:11]} 47. Kc3 {[%clk 0:00:03]}  Ke4 {[%clk 0:00:12]} 48. Kb4 {[%clk 0:00:03]}  Ra8 {[%clk 0:00:11]} 49. Kc5 {[%clk 0:00:04]}  e5 {[%clk 0:00:11]} 50. Kd6 {[%clk 0:00:04]}  Ra5 {[%clk 0:00:11]} 51. h4 {[%clk 0:00:04]}  Ke3 {[%clk 0:00:11]} 52. g4 {[%clk 0:00:04]}  Kxe2 {[%clk 0:00:11]} 53. g5 {[%clk 0:00:05]}  e4 {[%clk 0:00:11]} 54. Ke6 {[%clk 0:00:06]}  e3 {[%clk 0:00:11]} 55. Kf6 {[%clk 0:00:06]}  Kf2 {[%clk 0:00:11]} 56. Kg7 {[%clk 0:00:07]}  Ra7+ {[%clk 0:00:11]} 57. Kh6 {[%clk 0:00:08]}  e2 {[%clk 0:00:10]} 58. h5 {[%clk 0:00:08]}  gxh5 {[%clk 0:00:10]} 59. g6 {[%clk 0:00:08]}  hxg6 {[%clk 0:00:10]} 0-1


[Site "https://www.chess.com"]

[Event "Titled Tuesday Blitz June 14 Late 2022"]
[White "Moroni, Luca Jr"]
[Black "Bilych, Olexiy"]
[WhiteFideId "865834"]
[BlackFideId "14156504"]
[WhiteElo "2573"]
[BlackElo "2189"]
[Result "0-1"]
[Round "09"]
[TimeControl "180+1"]
[Date "2022.06.14"]
[WhiteClock "0:00:03"]
[BlackClock "0:00:48"]

1. e4 {[%clk 0:03:00]}  e5 {[%clk 0:02:59]} 2. Nf3 {[%clk 0:03:00]}  Nc6 {[%clk 0:03:00]} 3. d4 {[%clk 0:03:00]}  exd4 {[%clk 0:03:00]} 4. Bc4 {[%clk 0:03:01]}  Nf6 {[%clk 0:03:00]} 5. e5 {[%clk 0:03:00]}  d5 {[%clk 0:03:00]} 6. Bb5 {[%clk 0:03:00]}  Ne4 {[%clk 0:03:01]} 7. Nxd4 {[%clk 0:03:01]}  Bc5 {[%clk 0:03:01]} 8. Be3 {[%clk 0:02:47]}  O-O {[%clk 0:03:01]} 9. Bxc6 {[%clk 0:02:36]}  bxc6 {[%clk 0:03:00]} 10. O-O {[%clk 0:02:37]}  Qe8 {[%clk 0:02:55]} 11. f3 {[%clk 0:02:34]}  Nd6 {[%clk 0:02:41]} 12. f4 {[%clk 0:02:03]}  f6 {[%clk 0:02:09]} 13. Nc3 {[%clk 0:01:19]}  fxe5 {[%clk 0:02:00]} 14. fxe5 {[%clk 0:01:20]}  Rxf1+ {[%clk 0:01:57]} 15. Qxf1 {[%clk 0:01:21]}  Qxe5 {[%clk 0:01:57]} 16. Qd3 {[%clk 0:01:11]}  Ba6 {[%clk 0:01:48]} 17. Qxa6 {[%clk 0:00:56]}  Qxe3+ {[%clk 0:01:48]} 18. Kh1 {[%clk 0:00:57]}  Bxd4 {[%clk 0:01:36]} 19. Qxc6 {[%clk 0:00:57]}  Rf8 {[%clk 0:01:35]} 20. Qxd5+ {[%clk 0:00:54]}  Kh8 {[%clk 0:01:36]} 21. Rd1 {[%clk 0:00:48]}  Bxc3 {[%clk 0:01:28]} 22. bxc3 {[%clk 0:00:49]}  Qxc3 {[%clk 0:01:28]} 23. h3 {[%clk 0:00:47]}  Qxc2 {[%clk 0:01:26]} 24. Re1 {[%clk 0:00:47]}  Qf5 {[%clk 0:01:24]} 25. Qc6 {[%clk 0:00:45]}  Qf7 {[%clk 0:01:19]} 26. Qc5 {[%clk 0:00:43]}  h6 {[%clk 0:01:18]} 27. Qxa7 {[%clk 0:00:39]}  Qf2 {[%clk 0:01:16]} 28. Qxf2 {[%clk 0:00:37]}  Rxf2 {[%clk 0:01:17]} 29. Rc1 {[%clk 0:00:37]}  Rxa2 {[%clk 0:01:17]} 30. Rxc7 {[%clk 0:00:37]}  Kh7 {[%clk 0:01:17]} 31. Rc5 {[%clk 0:00:35]}  Ne4 {[%clk 0:01:17]} 32. Re5 {[%clk 0:00:35]}  Nf6 {[%clk 0:01:16]} 33. Rc5 {[%clk 0:00:34]}  Kg6 {[%clk 0:01:16]} 34. Rb5 {[%clk 0:00:34]}  h5 {[%clk 0:01:16]} 35. Rb4 {[%clk 0:00:32]}  Re2 {[%clk 0:01:13]} 36. Rb5 {[%clk 0:00:31]}  h4 {[%clk 0:01:13]} 37. Kh2 {[%clk 0:00:31]}  Re4 {[%clk 0:01:10]} 38. Rb3 {[%clk 0:00:30]}  Rd4 {[%clk 0:01:10]} 39. Rb1 {[%clk 0:00:30]}  Kh5 {[%clk 0:01:10]} 40. Rc1 {[%clk 0:00:29]}  Ne4 {[%clk 0:01:09]} 41. Ra1 {[%clk 0:00:28]}  g5 {[%clk 0:01:07]} 42. Ra5 {[%clk 0:00:26]}  Rd1 {[%clk 0:01:04]} 43. Ra8 {[%clk 0:00:07]}  Rd4 {[%clk 0:00:59]} 44. Re8 {[%clk 0:00:06]}  Kg6 {[%clk 0:00:59]} 45. Re5 {[%clk 0:00:06]}  Kf6 {[%clk 0:00:59]} 46. Ra5 {[%clk 0:00:07]}  Nd6 {[%clk 0:00:59]} 47. Ra6 {[%clk 0:00:07]}  Kf5 {[%clk 0:00:59]} 48. Ra5+ {[%clk 0:00:08]}  Kf4 {[%clk 0:01:00]} 49. Ra2 {[%clk 0:00:08]}  Ne4 {[%clk 0:00:59]} 50. Ra3 {[%clk 0:00:08]}  Rd2 {[%clk 0:00:58]} 51. Ra8 {[%clk 0:00:08]}  Ke3 {[%clk 0:00:58]} 52. Re8 {[%clk 0:00:08]}  Rd1 {[%clk 0:00:56]} 53. Re7 {[%clk 0:00:08]}  Rd5 {[%clk 0:00:56]} 54. Re8 {[%clk 0:00:08]}  Rf5 {[%clk 0:00:56]} 55. Re7 {[%clk 0:00:09]}  Kf4 {[%clk 0:00:56]} 56. Re8 {[%clk 0:00:09]}  Nf6 {[%clk 0:00:56]} 57. Re7 {[%clk 0:00:09]}  Re5 {[%clk 0:00:55]} 58. Ra7 {[%clk 0:00:10]}  Kf5 {[%clk 0:00:55]} 59. Ra4 {[%clk 0:00:10]}  Re3 {[%clk 0:00:52]} 60. Ra8 {[%clk 0:00:10]}  g4 {[%clk 0:00:51]} 61. Ra5+ {[%clk 0:00:11]}  Kg6 {[%clk 0:00:50]} 62. Ra1 {[%clk 0:00:10]}  g3+ {[%clk 0:00:50]} 63. Kg1 {[%clk 0:00:10]}  Ne4 {[%clk 0:00:50]} 64. Ra6+ {[%clk 0:00:10]}  Kf5 {[%clk 0:00:51]} 65. Ra5+ {[%clk 0:00:10]}  Kf4 {[%clk 0:00:51]} 66. Ra1 {[%clk 0:00:10]}  Rd3 {[%clk 0:00:49]} 67. Kf1 {[%clk 0:00:10]}  Nc3 {[%clk 0:00:49]} 68. Ke1 {[%clk 0:00:04]}  Ke3 {[%clk 0:00:48]} 69. Rc1 {[%clk 0:00:03]}  Rd1+ {[%clk 0:00:48]} 0-1


[Site "https://www.chess.com"]

[Event "Titled Tuesday Blitz June 14 Late 2022"]
[White "Oro, Luis"]
[Black "Cagara, Paulina"]
[WhiteFideId "104094"]
[BlackFideId "1124870"]
[WhiteElo "2369"]
[BlackElo "1873"]
[Result "1-0"]
[Round "09"]
[TimeControl "180+1"]
[Date "2022.06.15"]
[WhiteClock "0:00:03"]
[BlackClock "0:00:06"]

1. e4 {[%clk 0:03:00]}  c6 {[%clk 0:02:59]} 2. d4 {[%clk 0:02:57]}  d5 {[%clk 0:02:59]} 3. e5 {[%clk 0:02:56]}  c5 {[%clk 0:02:59]} 4. dxc5 {[%clk 0:02:56]}  e6 {[%clk 0:02:58]} 5. Be3 {[%clk 0:02:56]}  Nd7 {[%clk 0:02:57]} 6. Bb5 {[%clk 0:02:55]}  Qc7 {[%clk 0:02:57]} 7. Nf3 {[%clk 0:02:49]}  Bxc5 {[%clk 0:02:54]} 8. Bxc5 {[%clk 0:02:50]}  Qxc5 {[%clk 0:02:54]} 9. Bd3 {[%clk 0:02:50]}  Ne7 {[%clk 0:02:53]} 10. O-O {[%clk 0:02:49]}  Nc6 {[%clk 0:02:51]} 11. Re1 {[%clk 0:02:49]}  a6 {[%clk 0:02:47]} 12. c3 {[%clk 0:02:46]}  b5 {[%clk 0:02:46]} 13. Nbd2 {[%clk 0:02:46]}  Nb6 {[%clk 0:02:45]} 14. Nb3 {[%clk 0:02:45]}  Qe7 {[%clk 0:02:45]} 15. Nbd4 {[%clk 0:02:44]}  Bb7 {[%clk 0:02:40]} 16. Nxc6 {[%clk 0:02:42]}  Bxc6 {[%clk 0:02:40]} 17. Nd4 {[%clk 0:02:43]}  Bb7 {[%clk 0:02:40]} 18. f4 {[%clk 0:02:37]}  g6 {[%clk 0:02:39]} 19. Qf3 {[%clk 0:02:28]}  Nc4 {[%clk 0:02:38]} 20. b3 {[%clk 0:02:26]}  Na5 {[%clk 0:02:22]} 21. Qf2 {[%clk 0:02:13]}  Rc8 {[%clk 0:02:21]} 22. Rac1 {[%clk 0:01:48]}  O-O {[%clk 0:02:20]} 23. b4 {[%clk 0:01:43]}  Nc4 {[%clk 0:02:18]} 24. Nb3 {[%clk 0:01:41]}  Rc6 {[%clk 0:02:00]} 25. Nc5 {[%clk 0:01:32]}  Rfc8 {[%clk 0:01:58]} 26. Bxc4 {[%clk 0:01:32]}  dxc4 {[%clk 0:01:54]} 27. Rcd1 {[%clk 0:01:32]}  R6c7 {[%clk 0:01:50]} 28. Rd6 {[%clk 0:01:26]}  a5 {[%clk 0:01:42]} 29. a3 {[%clk 0:01:23]}  Bd5 {[%clk 0:01:39]} 30. Ra1 {[%clk 0:01:12]}  a4 {[%clk 0:01:38]} 31. Rd1 {[%clk 0:01:11]}  Kg7 {[%clk 0:01:35]} 32. Qg3 {[%clk 0:00:48]}  Kh8 {[%clk 0:01:31]} 33. Qh3 {[%clk 0:00:37]}  Rd8 {[%clk 0:01:26]} 34. Rxd8+ {[%clk 0:00:33]}  Qxd8 {[%clk 0:01:26]} 35. g4 {[%clk 0:00:27]}  Qe7 {[%clk 0:01:21]} 36. Qe3 {[%clk 0:00:21]}  Qh4 {[%clk 0:01:17]} 37. Qg3 {[%clk 0:00:21]}  Qe7 {[%clk 0:01:14]} 38. f5 {[%clk 0:00:18]}  gxf5 {[%clk 0:00:46]} 39. gxf5 {[%clk 0:00:19]}  Rc8 {[%clk 0:00:43]} 40. f6 {[%clk 0:00:18]}  Qf8 {[%clk 0:00:43]} 41. Kf2 {[%clk 0:00:16]}  Qg8 {[%clk 0:00:41]} 42. Rg1 {[%clk 0:00:14]}  Qg6 {[%clk 0:00:40]} 43. Qxg6 {[%clk 0:00:11]}  hxg6 {[%clk 0:00:40]} 44. h4 {[%clk 0:00:11]}  Rg8 {[%clk 0:00:31]} 45. Na6 {[%clk 0:00:04]}  Kh7 {[%clk 0:00:28]} 46. Nc7 {[%clk 0:00:04]}  Bc6 {[%clk 0:00:27]} 47. Rd1 {[%clk 0:00:05]}  Rc8 {[%clk 0:00:22]} 48. Na6 {[%clk 0:00:05]}  Kh6 {[%clk 0:00:20]} 49. Rd6 {[%clk 0:00:05]}  Kh5 {[%clk 0:00:18]} 50. Kg3 {[%clk 0:00:05]}  Be4 {[%clk 0:00:17]} 51. Nc5 {[%clk 0:00:05]}  Bf5 {[%clk 0:00:17]} 52. Rd7 {[%clk 0:00:04]}  Rg8 {[%clk 0:00:16]} 53. Rxf7 {[%clk 0:00:04]}  g5 {[%clk 0:00:17]} 54. hxg5 {[%clk 0:00:04]}  Rxg5+ {[%clk 0:00:16]} 55. Kf2 {[%clk 0:00:05]}  Rg4 {[%clk 0:00:15]} 56. Rf8 {[%clk 0:00:03]}  Rf4+ {[%clk 0:00:14]} 57. Ke3 {[%clk 0:00:04]}  Rf1 {[%clk 0:00:13]} 58. Rh8+ {[%clk 0:00:04]}  Kg4 {[%clk 0:00:12]} 59. Rg8+ {[%clk 0:00:05]}  Kh3 {[%clk 0:00:11]} 60. f7 {[%clk 0:00:04]}  Bd3 {[%clk 0:00:09]} 61. f8=Q {[%clk 0:00:03]}  Re1+ {[%clk 0:00:06]} 62. Kd4 {[%clk 0:00:02]}  Re4+ {[%clk 0:00:06]} 63. Nxe4 {[%clk 0:00:03]} 1-0


[Site "https://www.chess.com"]

[Event "Titled Tuesday Blitz June 14 Late 2022"]
[White "Petrovic, Aleksa"]
[Black "Yaksin, Oleg"]
[WhiteFideId "967629"]
[BlackFideId "24105880"]
[WhiteElo "2117"]
[BlackElo "2256"]
[Result "0-1"]
[Round "09"]
[TimeControl "180+1"]
[Date "2022.06.15"]
[WhiteClock "0:00:03"]
[BlackClock "0:00:09"]

1. d4 {[%clk 0:03:00]}  Nf6 {[%clk 0:02:54]} 2. c4 {[%clk 0:03:01]}  e6 {[%clk 0:02:54]} 3. Nf3 {[%clk 0:02:56]}  b6 {[%clk 0:02:54]} 4. g3 {[%clk 0:02:56]}  Bb7 {[%clk 0:02:54]} 5. Bg2 {[%clk 0:02:55]}  Be7 {[%clk 0:02:54]} 6. O-O {[%clk 0:02:55]}  O-O {[%clk 0:02:54]} 7. Re1 {[%clk 0:02:55]}  Na6 {[%clk 0:02:46]} 8. Nc3 {[%clk 0:02:50]}  Ne4 {[%clk 0:02:28]} 9. Ne5 {[%clk 0:02:31]}  Nxc3 {[%clk 0:02:22]} 10. bxc3 {[%clk 0:02:32]}  Bxg2 {[%clk 0:02:22]} 11. Kxg2 {[%clk 0:02:33]}  c6 {[%clk 0:02:10]} 12. e4 {[%clk 0:02:28]}  Nc7 {[%clk 0:02:08]} 13. Bf4 {[%clk 0:02:25]}  f6 {[%clk 0:02:00]} 14. Nd3 {[%clk 0:02:16]}  d6 {[%clk 0:02:00]} 15. d5 {[%clk 0:02:05]}  e5 {[%clk 0:01:46]} 16. Be3 {[%clk 0:02:03]}  c5 {[%clk 0:01:45]} 17. a4 {[%clk 0:01:57]}  f5 {[%clk 0:01:37]} 18. exf5 {[%clk 0:01:56]}  Rxf5 {[%clk 0:01:38]} 19. a5 {[%clk 0:01:47]}  b5 {[%clk 0:01:17]} 20. cxb5 {[%clk 0:01:46]}  Nxb5 {[%clk 0:01:07]} 21. c4 {[%clk 0:01:45]}  Nd4 {[%clk 0:00:59]} 22. Bxd4 {[%clk 0:01:40]}  cxd4 {[%clk 0:01:00]} 23. Qa4 {[%clk 0:01:29]}  Rc8 {[%clk 0:00:57]} 24. Re4 {[%clk 0:01:17]}  Qc7 {[%clk 0:00:53]} 25. Rc1 {[%clk 0:01:16]}  Rcf8 {[%clk 0:00:50]} 26. Rc2 {[%clk 0:01:14]}  Rf3 {[%clk 0:00:45]} 27. Nf4 {[%clk 0:00:50]}  R3xf4 {[%clk 0:00:44]} 28. gxf4 {[%clk 0:00:50]}  Qc8 {[%clk 0:00:37]} 29. f3 {[%clk 0:00:42]}  Qf5 {[%clk 0:00:29]} 30. Rce2 {[%clk 0:00:37]}  g5 {[%clk 0:00:27]} 31. Qc2 {[%clk 0:00:32]}  gxf4 {[%clk 0:00:27]} 32. Kh1 {[%clk 0:00:26]}  Kh8 {[%clk 0:00:26]} 33. Rg2 {[%clk 0:00:25]}  Bf6 {[%clk 0:00:18]} 34. c5 {[%clk 0:00:19]}  dxc5 {[%clk 0:00:17]} 35. Qxc5 {[%clk 0:00:20]}  Rd8 {[%clk 0:00:17]} 36. d6 {[%clk 0:00:19]}  Qe6 {[%clk 0:00:14]} 37. Qxa7 {[%clk 0:00:09]}  Qxd6 {[%clk 0:00:13]} 38. Re1 {[%clk 0:00:09]}  d3 {[%clk 0:00:13]} 39. Reg1 {[%clk 0:00:08]}  d2 {[%clk 0:00:12]} 40. Rg7 {[%clk 0:00:08]}  Qd3 {[%clk 0:00:09]} 41. Qb7 {[%clk 0:00:03]}  d1=Q {[%clk 0:00:09]} 42. Rxh7+ {[%clk 0:00:03]}  Qxh7 {[%clk 0:00:09]} 0-1


[Site "https://www.chess.com"]

[Event "Titled Tuesday Blitz June 14 Late 2022"]
[White "Pinheiro, Iung Alicio de O."]
[Black "Titichoca Daza, Daniel"]
[WhiteFideId "2104350"]
[BlackFideId "3309550"]
[WhiteElo "2283"]
[BlackElo "1912"]
[Result "0-1"]
[Round "09"]
[TimeControl "180+1"]
[Date "2022.06.14"]
[WhiteClock "0:00:03"]
[BlackClock "0:00:28"]

1. e4 {[%clk 0:03:00]}  d5 {[%clk 0:02:58]} 2. exd5 {[%clk 0:02:59]}  Qxd5 {[%clk 0:02:58]} 3. Nc3 {[%clk 0:02:57]}  Qa5 {[%clk 0:02:58]} 4. Bc4 {[%clk 0:02:52]}  Nf6 {[%clk 0:02:58]} 5. d3 {[%clk 0:02:51]}  c6 {[%clk 0:02:53]} 6. Bd2 {[%clk 0:02:50]}  Qc7 {[%clk 0:02:51]} 7. Qe2 {[%clk 0:02:46]}  Bg4 {[%clk 0:02:48]} 8. f3 {[%clk 0:02:45]}  Bh5 {[%clk 0:02:49]} 9. g4 {[%clk 0:02:40]}  Bg6 {[%clk 0:02:48]} 10. h4 {[%clk 0:02:41]}  h6 {[%clk 0:02:44]} 11. O-O-O {[%clk 0:02:34]}  Nbd7 {[%clk 0:02:42]} 12. Nh3 {[%clk 0:02:27]}  b5 {[%clk 0:02:37]} 13. Bb3 {[%clk 0:02:20]}  a5 {[%clk 0:02:33]} 14. h5 {[%clk 0:02:20]}  Bh7 {[%clk 0:02:33]} 15. g5 {[%clk 0:02:21]}  hxg5 {[%clk 0:02:32]} 16. Nxg5 {[%clk 0:02:22]}  Bg8 {[%clk 0:02:32]} 17. a4 {[%clk 0:02:09]}  Nc5 {[%clk 0:02:25]} 18. axb5 {[%clk 0:01:59]}  Nxb3+ {[%clk 0:02:25]} 19. cxb3 {[%clk 0:02:00]}  cxb5 {[%clk 0:02:25]} 20. Kb1 {[%clk 0:02:00]}  a4 {[%clk 0:02:21]} 21. b4 {[%clk 0:01:42]}  e6 {[%clk 0:02:21]} 22. Nxb5 {[%clk 0:01:39]}  Qb7 {[%clk 0:02:20]} 23. d4 {[%clk 0:01:32]}  Nd5 {[%clk 0:02:09]} 24. Rc1 {[%clk 0:01:24]}  Be7 {[%clk 0:02:01]} 25. Ne4 {[%clk 0:01:23]}  Bh7 {[%clk 0:01:57]} 26. Ka1 {[%clk 0:01:18]}  O-O {[%clk 0:01:55]} 27. Rhg1 {[%clk 0:01:15]}  Rfb8 {[%clk 0:01:48]} 28. Nbd6 {[%clk 0:00:52]}  Qd7 {[%clk 0:01:34]} 29. Qg2 {[%clk 0:00:52]}  Bf8 {[%clk 0:01:30]} 30. Rc5 {[%clk 0:00:48]}  Kh8 {[%clk 0:01:28]} 31. h6 {[%clk 0:00:40]}  g6 {[%clk 0:01:15]} 32. Nc4 {[%clk 0:00:37]}  a3 {[%clk 0:01:04]} 33. b3 {[%clk 0:00:36]}  Nxb4 {[%clk 0:01:03]} 34. Bc3 {[%clk 0:00:34]}  Nd5 {[%clk 0:01:01]} 35. Qd2 {[%clk 0:00:30]}  Rxb3 {[%clk 0:00:52]} 36. Nf6 {[%clk 0:00:23]}  Nxf6 {[%clk 0:00:45]} 37. d5 {[%clk 0:00:23]}  Rxc3 {[%clk 0:00:45]} 38. Qxc3 {[%clk 0:00:22]}  Bxh6 {[%clk 0:00:46]} 39. Qxf6+ {[%clk 0:00:22]}  Bg7 {[%clk 0:00:44]} 40. Qxg7+ {[%clk 0:00:13]}  Kxg7 {[%clk 0:00:44]} 41. d6 {[%clk 0:00:14]}  Qa4 {[%clk 0:00:36]} 42. Rb1 {[%clk 0:00:08]}  a2 {[%clk 0:00:29]} 43. Rc1 {[%clk 0:00:06]}  Qb4 {[%clk 0:00:29]} 44. Ne5 {[%clk 0:00:04]}  g5 {[%clk 0:00:28]} 45. Rc7 {[%clk 0:00:03]}  Qb1+ {[%clk 0:00:28]} 0-1


[Site "https://www.chess.com"]

[Event "Titled Tuesday Blitz June 14 Late 2022"]
[White "Postnikov, Daniil"]
[Black "Maltsevskaya, Aleksandra"]
[WhiteFideId "4166329"]
[BlackFideId "24174041"]
[WhiteElo "2261"]
[BlackElo "2243"]
[Result "1-0"]
[Round "09"]
[TimeControl "180+1"]
[Date "2022.06.15"]
[WhiteClock "0:00:12"]
[BlackClock "0:00:04"]

1. e4 {[%clk 0:03:00]}  c5 {[%clk 0:02:45]} 2. Nf3 {[%clk 0:03:00]}  e6 {[%clk 0:02:41]} 3. g3 {[%clk 0:03:00]}  Nc6 {[%clk 0:02:40]} 4. Bg2 {[%clk 0:02:59]}  d5 {[%clk 0:02:40]} 5. exd5 {[%clk 0:02:59]}  exd5 {[%clk 0:02:41]} 6. d4 {[%clk 0:03:00]}  Nf6 {[%clk 0:02:42]} 7. O-O {[%clk 0:02:58]}  Bg4 {[%clk 0:02:41]} 8. dxc5 {[%clk 0:02:36]}  Bxc5 {[%clk 0:02:40]} 9. Re1+ {[%clk 0:02:36]}  Ne4 {[%clk 0:02:36]} 10. Be3 {[%clk 0:02:24]}  Bxe3 {[%clk 0:02:31]} 11. Rxe3 {[%clk 0:02:25]}  O-O {[%clk 0:02:32]} 12. Nbd2 {[%clk 0:02:20]}  Re8 {[%clk 0:02:26]} 13. Qe1 {[%clk 0:02:08]}  Nf6 {[%clk 0:01:59]} 14. c3 {[%clk 0:02:00]}  Qb6 {[%clk 0:01:57]} 15. Nb3 {[%clk 0:01:35]}  Rxe3 {[%clk 0:01:28]} 16. Qxe3 {[%clk 0:01:36]}  Qxe3 {[%clk 0:01:29]} 17. fxe3 {[%clk 0:01:37]}  Re8 {[%clk 0:01:29]} 18. Re1 {[%clk 0:01:36]}  Bxf3 {[%clk 0:01:27]} 19. Bxf3 {[%clk 0:01:37]}  Ne5 {[%clk 0:01:28]} 20. Be2 {[%clk 0:01:30]}  b6 {[%clk 0:01:13]} 21. Nd4 {[%clk 0:01:28]}  g6 {[%clk 0:01:10]} 22. a4 {[%clk 0:01:23]}  Ne4 {[%clk 0:01:09]} 23. Nb5 {[%clk 0:01:09]}  Nd2 {[%clk 0:00:53]} 24. Rd1 {[%clk 0:00:56]}  Ndc4 {[%clk 0:00:53]} 25. Nc7 {[%clk 0:00:51]}  Rc8 {[%clk 0:00:44]} 26. Nxd5 {[%clk 0:00:48]}  Kf8 {[%clk 0:00:43]} 27. Bxc4 {[%clk 0:00:34]}  Nxc4 {[%clk 0:00:44]} 28. b3 {[%clk 0:00:34]}  Nd6 {[%clk 0:00:41]} 29. c4 {[%clk 0:00:33]}  Ne4 {[%clk 0:00:41]} 30. Kg2 {[%clk 0:00:31]}  Nc5 {[%clk 0:00:39]} 31. Rb1 {[%clk 0:00:28]}  f5 {[%clk 0:00:29]} 32. Kf3 {[%clk 0:00:28]}  Kf7 {[%clk 0:00:28]} 33. h4 {[%clk 0:00:27]}  Nd3 {[%clk 0:00:27]} 34. e4 {[%clk 0:00:22]}  fxe4+ {[%clk 0:00:06]} 35. Kxe4 {[%clk 0:00:22]}  Nc5+ {[%clk 0:00:06]} 36. Kd4 {[%clk 0:00:22]}  Re8 {[%clk 0:00:06]} 37. Rf1+ {[%clk 0:00:21]}  Kg7 {[%clk 0:00:07]} 38. b4 {[%clk 0:00:21]}  Re4+ {[%clk 0:00:06]} 39. Kc3 {[%clk 0:00:21]}  Nxa4+ {[%clk 0:00:07]} 40. Kb3 {[%clk 0:00:19]}  b5 {[%clk 0:00:02]} 41. cxb5 {[%clk 0:00:18]}  Nb6 {[%clk 0:00:03]} 42. Nc3 {[%clk 0:00:18]}  Re3 {[%clk 0:00:03]} 43. Ra1 {[%clk 0:00:18]}  Nd5 {[%clk 0:00:03]} 44. Rc1 {[%clk 0:00:14]}  Rxg3 {[%clk 0:00:03]} 45. Kc4 {[%clk 0:00:12]}  Nb6+ {[%clk 0:00:03]} 46. Kc5 {[%clk 0:00:12]}  Kf6 {[%clk 0:00:01]} 47. Nd5+ {[%clk 0:00:12]}  Nxd5 {[%clk 0:00:01]} 48. Kxd5 {[%clk 0:00:13]}  Rg4 {[%clk 0:00:02]} 49. Ra1 {[%clk 0:00:11]}  Rxb4 {[%clk 0:00:01]} 50. Kc5 {[%clk 0:00:10]}  Rxh4 {[%clk 0:00:02]} 51. Rxa7 {[%clk 0:00:10]}  h5 {[%clk 0:00:03]} 52. b6 {[%clk 0:00:10]}  Rh2 {[%clk 0:00:03]} 53. b7 {[%clk 0:00:11]}  Rb2 {[%clk 0:00:04]} 54. Ra6+ {[%clk 0:00:11]}  Kf5 {[%clk 0:00:03]} 55. Rb6 {[%clk 0:00:12]}  Re2 {[%clk 0:00:04]} 1-0


[Site "https://www.chess.com"]